{"text_format":"3","workbook":"xlsx","n_sheets":13,"sheets":["Január","Február","Március","Április","Május","Június","Július","Augusztus","Szeptember","Október","November","December","Év eddigi adatainak összesítése"],"not_rendered":{"charts":1,"defined_names":13},"read":"whole","date_system":"1900"}

{"sheet":"Január","index":0,"n_rows":9,"n_cols":14,"rows_kept":9,"merged":[[3,0,4,0],[6,0,7,0]]}
["JANUÁR"]
["Online értékesítések",null,"Árverés azonosítója","Tétel megnevezése","Beszerzési ár","Eladási ár","Online szolgáltatási díjak","PayPal\nszolgáltatás díja","Hitelkártyadíjak","Szállítási költségek","Szállítási díjak","Értékesítési nyereség/veszteség","Szállítási nyereség/veszteség","Összes\nnyereség/veszteség"]
["Év",null,"TS001","1. tétel",{"v":5,"d":"5.00 Ft"},{"v":4,"d":"4.00 Ft"},{"v":2,"d":"2.00 Ft"},{"v":1.5,"d":"1.50 Ft"},{"v":0,"d":"0.00 Ft"},{"v":4,"d":"4.00 Ft"},{"v":2,"d":"2.00 Ft"},{"$f":"IFERROR(JanuáriÉrtékesítés[Eladási ár]-(JanuáriÉrtékesítés[Beszerzési ár]+JanuáriÉrtékesítés[Online szolgáltatási díjak]+JanuáriÉrtékesítés[PayPal\nszolgáltatás díja]+JanuáriÉrtékesítés[Hitelkártyadíjak]),\"\")","v":{"v":-4.5,"d":"-4.50 Ft"}},{"$f":"JanuáriÉrtékesítés[Szállítási költségek]-JanuáriÉrtékesítés[Szállítási díjak]","v":{"v":2,"d":"2.00 Ft"}},{"$f":"JanuáriÉrtékesítés[Értékesítési nyereség/veszteség]+JanuáriÉrtékesítés[Szállítási nyereség/veszteség]","v":{"v":-2.5,"d":"-2.50 Ft"}}]
[2012,null,"TP004","2. tétel",{"v":2,"d":"2.00 Ft"},{"v":30,"d":"30.00 Ft"},{"v":0.5,"d":"0.50 Ft"},{"v":0.5,"d":"0.50 Ft"},null,{"v":4,"d":"4.00 Ft"},{"v":5.5,"d":"5.50 Ft"},{"$f":"IFERROR(JanuáriÉrtékesítés[Eladási ár]-(JanuáriÉrtékesítés[Beszerzési ár]+JanuáriÉrtékesítés[Online szolgáltatási díjak]+JanuáriÉrtékesítés[PayPal\nszolgáltatás díja]+JanuáriÉrtékesítés[Hitelkártyadíjak]),\"\")","v":{"v":27,"d":"27.00 Ft"}},{"$f":"JanuáriÉrtékesítés[Szállítási költségek]-JanuáriÉrtékesítés[Szállítási díjak]","v":{"v":-1.5,"d":"-1.50 Ft"}},{"$f":"JanuáriÉrtékesítés[Értékesítési nyereség/veszteség]+JanuáriÉrtékesítés[Szállítási nyereség/veszteség]","v":{"v":25.5,"d":"25.50 Ft"}}]
[null,null,"RS99","3. tétel",{"v":17,"d":"17.00 Ft"},{"v":23,"d":"23.00 Ft"},{"v":2,"d":"2.00 Ft"},null,{"v":2,"d":"2.00 Ft"},{"v":3,"d":"3.00 Ft"},{"v":2,"d":"2.00 Ft"},{"$f":"IFERROR(JanuáriÉrtékesítés[Eladási ár]-(JanuáriÉrtékesítés[Beszerzési ár]+JanuáriÉrtékesítés[Online szolgáltatási díjak]+JanuáriÉrtékesítés[PayPal\nszolgáltatás díja]+JanuáriÉrtékesítés[Hitelkártyadíjak]),\"\")","v":{"v":2,"d":"2.00 Ft"}},{"$f":"JanuáriÉrtékesítés[Szállítási költségek]-JanuáriÉrtékesítés[Szállítási díjak]","v":{"v":1,"d":"1.00 Ft"}},{"$f":"JanuáriÉrtékesítés[Értékesítési nyereség/veszteség]+JanuáriÉrtékesítés[Szállítási nyereség/veszteség]","v":{"v":3,"d":"3.00 Ft"}}]
["Összes\nnyereség/veszteség",null,"ST001","4. tétel",{"v":120,"d":"120.00 Ft"},{"v":180,"d":"180.00 Ft"},{"v":2,"d":"2.00 Ft"},{"v":1.5,"d":"1.50 Ft"},null,{"v":3,"d":"3.00 Ft"},{"v":2,"d":"2.00 Ft"},{"$f":"IFERROR(JanuáriÉrtékesítés[Eladási ár]-(JanuáriÉrtékesítés[Beszerzési ár]+JanuáriÉrtékesítés[Online szolgáltatási díjak]+JanuáriÉrtékesítés[PayPal\nszolgáltatás díja]+JanuáriÉrtékesítés[Hitelkártyadíjak]),\"\")","v":{"v":56.5,"d":"56.50 Ft"}},{"$f":"JanuáriÉrtékesítés[Szállítási költségek]-JanuáriÉrtékesítés[Szállítási díjak]","v":{"v":1,"d":"1.00 Ft"}},{"$f":"JanuáriÉrtékesítés[Értékesítési nyereség/veszteség]+JanuáriÉrtékesítés[Szállítási nyereség/veszteség]","v":{"v":57.5,"d":"57.50 Ft"}}]
[{"$f":"JanuáriÉrtékesítés[[#Totals],[Összes\nnyereség/veszteség]]","v":{"v":89,"d":"89.00 Ft"}},null,"ST001","5. tétel",{"v":10,"d":"10.00 Ft"},{"v":12,"d":"12.00 Ft"},{"v":2,"d":"2.00 Ft"},{"v":1.5,"d":"1.50 Ft"},null,{"v":14,"d":"14.00 Ft"},{"v":7,"d":"7.00 Ft"},{"$f":"IFERROR(JanuáriÉrtékesítés[Eladási ár]-(JanuáriÉrtékesítés[Beszerzési ár]+JanuáriÉrtékesítés[Online szolgáltatási díjak]+JanuáriÉrtékesítés[PayPal\nszolgáltatás díja]+JanuáriÉrtékesítés[Hitelkártyadíjak]),\"\")","v":{"v":-1.5,"d":"-1.50 Ft"}},{"$f":"JanuáriÉrtékesítés[Szállítási költségek]-JanuáriÉrtékesítés[Szállítási díjak]","v":{"v":7,"d":"7.00 Ft"}},{"$f":"JanuáriÉrtékesítés[Értékesítési nyereség/veszteség]+JanuáriÉrtékesítés[Szállítási nyereség/veszteség]","v":{"v":5.5,"d":"5.50 Ft"}}]
[null,null," Összesen",{"$f":"\"Értékesített cikkek száma: \"&SUBTOTAL(103,JanuáriÉrtékesítés[Tétel megnevezése])","v":"Értékesített cikkek száma: 5"},{"$f":"SUBTOTAL(109,JanuáriÉrtékesítés[Beszerzési ár])","v":{"v":154,"d":"154.00 Ft"}},{"$f":"SUBTOTAL(109,JanuáriÉrtékesítés[Eladási ár])","v":{"v":249,"d":"249.00 Ft"}},{"$f":"SUBTOTAL(109,JanuáriÉrtékesítés[Online szolgáltatási díjak])","v":{"v":8.5,"d":"8.50 Ft"}},{"$f":"SUBTOTAL(109,JanuáriÉrtékesítés[PayPal\nszolgáltatás díja])","v":{"v":5,"d":"5.00 Ft"}},{"$f":"SUBTOTAL(109,JanuáriÉrtékesítés[Hitelkártyadíjak])","v":{"v":2,"d":"2.00 Ft"}},{"$f":"SUBTOTAL(109,JanuáriÉrtékesítés[Szállítási költségek])","v":{"v":28,"d":"28.00 Ft"}},{"$f":"SUBTOTAL(109,JanuáriÉrtékesítés[Szállítási díjak])","v":{"v":18.5,"d":"18.50 Ft"}},{"$f":"SUBTOTAL(109,JanuáriÉrtékesítés[Értékesítési nyereség/veszteség])","v":{"v":79.5,"d":"79.50 Ft"}},{"$f":"SUBTOTAL(109,JanuáriÉrtékesítés[Szállítási nyereség/veszteség])","v":{"v":9.5,"d":"9.50 Ft"}},{"$f":"SUBTOTAL(109,JanuáriÉrtékesítés[Összes\nnyereség/veszteség])","v":{"v":89,"d":"89.00 Ft"}}]
["Nyereség/veszteség alakulása"]

{"sheet":"Február","index":1,"n_rows":9,"n_cols":14,"rows_kept":9,"merged":[[3,0,4,0],[6,0,7,0]]}
["FEBRUÁR"]
["Online értékesítések",null,"Árverés azonosítója","Tétel megnevezése","Beszerzési ár","Eladási ár","Online szolgáltatási díjak","PayPal\nszolgáltatás díja","Hitelkártyadíjak","Szállítási költségek","Szállítási díjak","Értékesítési nyereség/veszteség","Szállítási nyereség/veszteség","Összes\nnyereség/veszteség"]
["Év",null,"TS020","1. tétel",{"v":10,"d":"10.00 Ft"},{"v":175,"d":"175.00 Ft"},{"v":3,"d":"3.00 Ft"},{"v":1.5,"d":"1.50 Ft"},{"v":0,"d":"0.00 Ft"},{"v":7,"d":"7.00 Ft"},{"v":5,"d":"5.00 Ft"},{"$f":"IFERROR(FebruáriÉrtékesítés[Eladási ár]-(FebruáriÉrtékesítés[Beszerzési ár]+FebruáriÉrtékesítés[Online szolgáltatási díjak]+FebruáriÉrtékesítés[PayPal\nszolgáltatás díja]+FebruáriÉrtékesítés[Hitelkártyadíjak]),\"\")","v":{"v":160.5,"d":"160.50 Ft"}},{"$f":"FebruáriÉrtékesítés[Szállítási költségek]-FebruáriÉrtékesítés[Szállítási díjak]","v":{"v":2,"d":"2.00 Ft"}},{"$f":"FebruáriÉrtékesítés[Értékesítési nyereség/veszteség]+FebruáriÉrtékesítés[Szállítási nyereség/veszteség]","v":{"v":162.5,"d":"162.50 Ft"}}]
[{"$f":"ÉrtékesítésiÉv","v":2012},null,"TS021","2. tétel",{"v":32,"d":"32.00 Ft"},{"v":100,"d":"100.00 Ft"},{"v":3,"d":"3.00 Ft"},null,{"v":3.2,"d":"3.20 Ft"},{"v":20,"d":"20.00 Ft"},{"v":13,"d":"13.00 Ft"},{"$f":"IFERROR(FebruáriÉrtékesítés[Eladási ár]-(FebruáriÉrtékesítés[Beszerzési ár]+FebruáriÉrtékesítés[Online szolgáltatási díjak]+FebruáriÉrtékesítés[PayPal\nszolgáltatás díja]+FebruáriÉrtékesítés[Hitelkártyadíjak]),\"\")","v":{"v":61.8,"d":"61.80 Ft"}},{"$f":"FebruáriÉrtékesítés[Szállítási költségek]-FebruáriÉrtékesítés[Szállítási díjak]","v":{"v":7,"d":"7.00 Ft"}},{"$f":"FebruáriÉrtékesítés[Értékesítési nyereség/veszteség]+FebruáriÉrtékesítés[Szállítási nyereség/veszteség]","v":{"v":68.8,"d":"68.80 Ft"}}]
[null,null,"TS022","3. tétel",{"v":3,"d":"3.00 Ft"},{"v":7,"d":"7.00 Ft"},{"v":2,"d":"2.00 Ft"},null,{"v":2,"d":"2.00 Ft"},{"v":0.5,"d":"0.50 Ft"},{"v":1.2,"d":"1.20 Ft"},{"$f":"IFERROR(FebruáriÉrtékesítés[Eladási ár]-(FebruáriÉrtékesítés[Beszerzési ár]+FebruáriÉrtékesítés[Online szolgáltatási díjak]+FebruáriÉrtékesítés[PayPal\nszolgáltatás díja]+FebruáriÉrtékesítés[Hitelkártyadíjak]),\"\")","v":{"v":0,"d":"0.00 Ft"}},{"$f":"FebruáriÉrtékesítés[Szállítási költségek]-FebruáriÉrtékesítés[Szállítási díjak]","v":{"v":-0.7,"d":"-0.70 Ft"}},{"$f":"FebruáriÉrtékesítés[Értékesítési nyereség/veszteség]+FebruáriÉrtékesítés[Szállítási nyereség/veszteség]","v":{"v":-0.7,"d":"-0.70 Ft"}}]
["Összes\nnyereség/veszteség",null,"TS023","4. tétel",{"v":22,"d":"22.00 Ft"},{"v":18,"d":"18.00 Ft"},{"v":3,"d":"3.00 Ft"},{"v":1.5,"d":"1.50 Ft"},null,{"v":7,"d":"7.00 Ft"},{"v":10,"d":"10.00 Ft"},{"$f":"IFERROR(FebruáriÉrtékesítés[Eladási ár]-(FebruáriÉrtékesítés[Beszerzési ár]+FebruáriÉrtékesítés[Online szolgáltatási díjak]+FebruáriÉrtékesítés[PayPal\nszolgáltatás díja]+FebruáriÉrtékesítés[Hitelkártyadíjak]),\"\")","v":{"v":-8.5,"d":"-8.50 Ft"}},{"$f":"FebruáriÉrtékesítés[Szállítási költségek]-FebruáriÉrtékesítés[Szállítási díjak]","v":{"v":-3,"d":"-3.00 Ft"}},{"$f":"FebruáriÉrtékesítés[Értékesítési nyereség/veszteség]+FebruáriÉrtékesítés[Szállítási nyereség/veszteség]","v":{"v":-11.5,"d":"-11.50 Ft"}}]
[{"$f":"FebruáriÉrtékesítés[[#Totals],[Összes\nnyereség/veszteség]]","v":{"v":224.60000000000002,"d":"224.60 Ft"}},null,"TS024","5. tétel",{"v":10,"d":"10.00 Ft"},{"v":12,"d":"12.00 Ft"},{"v":2,"d":"2.00 Ft"},{"v":1.5,"d":"1.50 Ft"},null,{"v":14,"d":"14.00 Ft"},{"v":7,"d":"7.00 Ft"},{"$f":"IFERROR(FebruáriÉrtékesítés[Eladási ár]-(FebruáriÉrtékesítés[Beszerzési ár]+FebruáriÉrtékesítés[Online szolgáltatási díjak]+FebruáriÉrtékesítés[PayPal\nszolgáltatás díja]+FebruáriÉrtékesítés[Hitelkártyadíjak]),\"\")","v":{"v":-1.5,"d":"-1.50 Ft"}},{"$f":"FebruáriÉrtékesítés[Szállítási költségek]-FebruáriÉrtékesítés[Szállítási díjak]","v":{"v":7,"d":"7.00 Ft"}},{"$f":"FebruáriÉrtékesítés[Értékesítési nyereség/veszteség]+FebruáriÉrtékesítés[Szállítási nyereség/veszteség]","v":{"v":5.5,"d":"5.50 Ft"}}]
[null,null," Összesen",{"$f":"\"Értékesített cikkek száma: \"&SUBTOTAL(103,FebruáriÉrtékesítés[Tétel megnevezése])","v":"Értékesített cikkek száma: 5"},{"$f":"SUBTOTAL(109,FebruáriÉrtékesítés[Beszerzési ár])","v":{"v":77,"d":"77.00 Ft"}},{"$f":"SUBTOTAL(109,FebruáriÉrtékesítés[Eladási ár])","v":{"v":312,"d":"312.00 Ft"}},{"$f":"SUBTOTAL(109,FebruáriÉrtékesítés[Online szolgáltatási díjak])","v":{"v":13,"d":"13.00 Ft"}},{"$f":"SUBTOTAL(109,FebruáriÉrtékesítés[PayPal\nszolgáltatás díja])","v":{"v":4.5,"d":"4.50 Ft"}},{"$f":"SUBTOTAL(109,FebruáriÉrtékesítés[Hitelkártyadíjak])","v":{"v":5.2,"d":"5.20 Ft"}},{"$f":"SUBTOTAL(109,FebruáriÉrtékesítés[Szállítási költségek])","v":{"v":48.5,"d":"48.50 Ft"}},{"$f":"SUBTOTAL(109,FebruáriÉrtékesítés[Szállítási díjak])","v":{"v":36.2,"d":"36.20 Ft"}},{"$f":"SUBTOTAL(109,FebruáriÉrtékesítés[Értékesítési nyereség/veszteség])","v":{"v":212.3,"d":"212.30 Ft"}},{"$f":"SUBTOTAL(109,FebruáriÉrtékesítés[Szállítási nyereség/veszteség])","v":{"v":12.3,"d":"12.30 Ft"}},{"$f":"SUBTOTAL(109,FebruáriÉrtékesítés[Összes\nnyereség/veszteség])","v":{"v":224.60000000000002,"d":"224.60 Ft"}}]
["Nyereség/veszteség alakulása"]

{"sheet":"Március","index":2,"n_rows":9,"n_cols":14,"rows_kept":9,"merged":[[3,0,4,0],[6,0,7,0]]}
["MÁRCIUS"]
["Online értékesítések",null,"Árverés azonosítója","Tétel megnevezése","Beszerzési ár","Eladási ár","Online szolgáltatási díjak","PayPal\nszolgáltatás díja","Hitelkártyadíjak","Szállítási költségek","Szállítási díjak","Értékesítési nyereség/veszteség","Szállítási nyereség/veszteség","Összes\nnyereség/veszteség"]
["Év",{"$nulls":10},{"$f":"IFERROR(MárciusiÉrtékesítés[Eladási ár]-(MárciusiÉrtékesítés[Beszerzési ár]+MárciusiÉrtékesítés[Online szolgáltatási díjak]+MárciusiÉrtékesítés[PayPal\nszolgáltatás díja]+MárciusiÉrtékesítés[Hitelkártyadíjak]),\"\")","v":{"v":0,"d":"0.00 Ft"}},{"$f":"MárciusiÉrtékesítés[Szállítási költségek]-MárciusiÉrtékesítés[Szállítási díjak]","v":{"v":0,"d":"0.00 Ft"}},{"$f":"MárciusiÉrtékesítés[Értékesítési nyereség/veszteség]+MárciusiÉrtékesítés[Szállítási nyereség/veszteség]","v":{"v":0,"d":"0.00 Ft"}}]
[{"$f":"ÉrtékesítésiÉv","v":2012},{"$nulls":10},{"$f":"IFERROR(MárciusiÉrtékesítés[Eladási ár]-(MárciusiÉrtékesítés[Beszerzési ár]+MárciusiÉrtékesítés[Online szolgáltatási díjak]+MárciusiÉrtékesítés[PayPal\nszolgáltatás díja]+MárciusiÉrtékesítés[Hitelkártyadíjak]),\"\")","v":{"v":0,"d":"0.00 Ft"}},{"$f":"MárciusiÉrtékesítés[Szállítási költségek]-MárciusiÉrtékesítés[Szállítási díjak]","v":{"v":0,"d":"0.00 Ft"}},{"$f":"MárciusiÉrtékesítés[Értékesítési nyereség/veszteség]+MárciusiÉrtékesítés[Szállítási nyereség/veszteség]","v":{"v":0,"d":"0.00 Ft"}}]
[{"$nulls":11},{"$f":"IFERROR(MárciusiÉrtékesítés[Eladási ár]-(MárciusiÉrtékesítés[Beszerzési ár]+MárciusiÉrtékesítés[Online szolgáltatási díjak]+MárciusiÉrtékesítés[PayPal\nszolgáltatás díja]+MárciusiÉrtékesítés[Hitelkártyadíjak]),\"\")","v":{"v":0,"d":"0.00 Ft"}},{"$f":"MárciusiÉrtékesítés[Szállítási költségek]-MárciusiÉrtékesítés[Szállítási díjak]","v":{"v":0,"d":"0.00 Ft"}},{"$f":"MárciusiÉrtékesítés[Értékesítési nyereség/veszteség]+MárciusiÉrtékesítés[Szállítási nyereség/veszteség]","v":{"v":0,"d":"0.00 Ft"}}]
["Összes\nnyereség/veszteség",{"$nulls":10},{"$f":"IFERROR(MárciusiÉrtékesítés[Eladási ár]-(MárciusiÉrtékesítés[Beszerzési ár]+MárciusiÉrtékesítés[Online szolgáltatási díjak]+MárciusiÉrtékesítés[PayPal\nszolgáltatás díja]+MárciusiÉrtékesítés[Hitelkártyadíjak]),\"\")","v":{"v":0,"d":"0.00 Ft"}},{"$f":"MárciusiÉrtékesítés[Szállítási költségek]-MárciusiÉrtékesítés[Szállítási díjak]","v":{"v":0,"d":"0.00 Ft"}},{"$f":"MárciusiÉrtékesítés[Értékesítési nyereség/veszteség]+MárciusiÉrtékesítés[Szállítási nyereség/veszteség]","v":{"v":0,"d":"0.00 Ft"}}]
[{"$f":"MárciusiÉrtékesítés[[#Totals],[Összes\nnyereség/veszteség]]","v":{"v":0,"d":"0.00 Ft"}},{"$nulls":10},{"$f":"IFERROR(MárciusiÉrtékesítés[Eladási ár]-(MárciusiÉrtékesítés[Beszerzési ár]+MárciusiÉrtékesítés[Online szolgáltatási díjak]+MárciusiÉrtékesítés[PayPal\nszolgáltatás díja]+MárciusiÉrtékesítés[Hitelkártyadíjak]),\"\")","v":{"v":0,"d":"0.00 Ft"}},{"$f":"MárciusiÉrtékesítés[Szállítási költségek]-MárciusiÉrtékesítés[Szállítási díjak]","v":{"v":0,"d":"0.00 Ft"}},{"$f":"MárciusiÉrtékesítés[Értékesítési nyereség/veszteség]+MárciusiÉrtékesítés[Szállítási nyereség/veszteség]","v":{"v":0,"d":"0.00 Ft"}}]
[null,null," Összesen",{"$f":"\"Értékesített cikkek száma: \"&SUBTOTAL(103,MárciusiÉrtékesítés[Tétel megnevezése])","v":"Értékesített cikkek száma: 0"},{"$f":"SUBTOTAL(109,MárciusiÉrtékesítés[Beszerzési ár])","v":{"v":0,"d":"0.00 Ft"}},{"$f":"SUBTOTAL(109,MárciusiÉrtékesítés[Eladási ár])","v":{"v":0,"d":"0.00 Ft"}},{"$f":"SUBTOTAL(109,MárciusiÉrtékesítés[Online szolgáltatási díjak])","v":{"v":0,"d":"0.00 Ft"}},{"$f":"SUBTOTAL(109,MárciusiÉrtékesítés[PayPal\nszolgáltatás díja])","v":{"v":0,"d":"0.00 Ft"}},{"$f":"SUBTOTAL(109,MárciusiÉrtékesítés[Hitelkártyadíjak])","v":{"v":0,"d":"0.00 Ft"}},{"$f":"SUBTOTAL(109,MárciusiÉrtékesítés[Szállítási költségek])","v":{"v":0,"d":"0.00 Ft"}},{"$f":"SUBTOTAL(109,MárciusiÉrtékesítés[Szállítási díjak])","v":{"v":0,"d":"0.00 Ft"}},{"$f":"SUBTOTAL(109,MárciusiÉrtékesítés[Értékesítési nyereség/veszteség])","v":{"v":0,"d":"0.00 Ft"}},{"$f":"SUBTOTAL(109,MárciusiÉrtékesítés[Szállítási nyereség/veszteség])","v":{"v":0,"d":"0.00 Ft"}},{"$f":"SUBTOTAL(109,MárciusiÉrtékesítés[Összes\nnyereség/veszteség])","v":{"v":0,"d":"0.00 Ft"}}]
["Nyereség/veszteség alakulása"]

{"sheet":"Április","index":3,"n_rows":9,"n_cols":14,"rows_kept":9,"merged":[[3,0,4,0],[6,0,7,0]]}
["ÁPRILIS"]
["Online értékesítések",null,"Árverés azonosítója","Tétel megnevezése","Beszerzési ár","Eladási ár","Online szolgáltatási díjak","PayPal\nszolgáltatás díja","Hitelkártyadíjak","Szállítási költségek","Szállítási díjak","Értékesítési nyereség/veszteség","Szállítási nyereség/veszteség","Összes\nnyereség/veszteség"]
["Év",{"$nulls":11},{"$f":"ÁprilisiÉrtékesítés[Szállítási költségek]-ÁprilisiÉrtékesítés[Szállítási díjak]","v":{"v":0,"d":"0.00 Ft"}},{"$f":"ÁprilisiÉrtékesítés[Értékesítési nyereség/veszteség]+ÁprilisiÉrtékesítés[Szállítási nyereség/veszteség]","v":{"v":0,"d":"0.00 Ft"}}]
[{"$f":"ÉrtékesítésiÉv","v":2012},{"$nulls":11},{"$f":"ÁprilisiÉrtékesítés[Szállítási költségek]-ÁprilisiÉrtékesítés[Szállítási díjak]","v":{"v":0,"d":"0.00 Ft"}},{"$f":"ÁprilisiÉrtékesítés[Értékesítési nyereség/veszteség]+ÁprilisiÉrtékesítés[Szállítási nyereség/veszteség]","v":{"v":0,"d":"0.00 Ft"}}]
[{"$nulls":12},{"$f":"ÁprilisiÉrtékesítés[Szállítási költségek]-ÁprilisiÉrtékesítés[Szállítási díjak]","v":{"v":0,"d":"0.00 Ft"}},{"$f":"ÁprilisiÉrtékesítés[Értékesítési nyereség/veszteség]+ÁprilisiÉrtékesítés[Szállítási nyereség/veszteség]","v":{"v":0,"d":"0.00 Ft"}}]
["Összes\nnyereség/veszteség",{"$nulls":11},{"$f":"ÁprilisiÉrtékesítés[Szállítási költségek]-ÁprilisiÉrtékesítés[Szállítási díjak]","v":{"v":0,"d":"0.00 Ft"}},{"$f":"ÁprilisiÉrtékesítés[Értékesítési nyereség/veszteség]+ÁprilisiÉrtékesítés[Szállítási nyereség/veszteség]","v":{"v":0,"d":"0.00 Ft"}}]
[{"$f":"ÁprilisiÉrtékesítés[[#Totals],[Összes\nnyereség/veszteség]]","v":{"v":0,"d":"0.00 Ft"}},{"$nulls":11},{"$f":"ÁprilisiÉrtékesítés[Szállítási költségek]-ÁprilisiÉrtékesítés[Szállítási díjak]","v":{"v":0,"d":"0.00 Ft"}},{"$f":"ÁprilisiÉrtékesítés[Értékesítési nyereség/veszteség]+ÁprilisiÉrtékesítés[Szállítási nyereség/veszteség]","v":{"v":0,"d":"0.00 Ft"}}]
[null,null," Összesen",{"$f":"\"Értékesített cikkek száma: \"&SUBTOTAL(103,ÁprilisiÉrtékesítés[Tétel megnevezése])","v":"Értékesített cikkek száma: 0"},{"$f":"SUBTOTAL(109,ÁprilisiÉrtékesítés[Beszerzési ár])","v":{"v":0,"d":"0.00 Ft"}},{"$f":"SUBTOTAL(109,ÁprilisiÉrtékesítés[Eladási ár])","v":{"v":0,"d":"0.00 Ft"}},{"$f":"SUBTOTAL(109,ÁprilisiÉrtékesítés[Online szolgáltatási díjak])","v":{"v":0,"d":"0.00 Ft"}},{"$f":"SUBTOTAL(109,ÁprilisiÉrtékesítés[PayPal\nszolgáltatás díja])","v":{"v":0,"d":"0.00 Ft"}},{"$f":"SUBTOTAL(109,ÁprilisiÉrtékesítés[Hitelkártyadíjak])","v":{"v":0,"d":"0.00 Ft"}},{"$f":"SUBTOTAL(109,ÁprilisiÉrtékesítés[Szállítási költségek])","v":{"v":0,"d":"0.00 Ft"}},{"$f":"SUBTOTAL(109,ÁprilisiÉrtékesítés[Szállítási díjak])","v":{"v":0,"d":"0.00 Ft"}},{"$f":"SUBTOTAL(109,ÁprilisiÉrtékesítés[Értékesítési nyereség/veszteség])","v":{"v":0,"d":"0.00 Ft"}},{"$f":"SUBTOTAL(109,ÁprilisiÉrtékesítés[Szállítási nyereség/veszteség])","v":{"v":0,"d":"0.00 Ft"}},{"$f":"SUBTOTAL(109,ÁprilisiÉrtékesítés[Összes\nnyereség/veszteség])","v":{"v":0,"d":"0.00 Ft"}}]
["Nyereség/veszteség alakulása"]

{"sheet":"Május","index":4,"n_rows":9,"n_cols":14,"rows_kept":9,"merged":[[3,0,4,0],[6,0,7,0]]}
["MÁJUS"]
["Online értékesítések",null,"Árverés azonosítója","Tétel megnevezése","Beszerzési ár","Eladási ár","Online szolgáltatási díjak","PayPal\nszolgáltatás díja","Hitelkártyadíjak","Szállítási költségek","Szállítási díjak","Értékesítési nyereség/veszteség","Szállítási nyereség/veszteség","Összes\nnyereség/veszteség"]
["Év",{"$nulls":11},{"$f":"MájusiÉrtékesítés[Szállítási költségek]-MájusiÉrtékesítés[Szállítási díjak]","v":{"v":0,"d":"0.00 Ft"}},{"$f":"MájusiÉrtékesítés[Értékesítési nyereség/veszteség]+MájusiÉrtékesítés[Szállítási nyereség/veszteség]","v":{"v":0,"d":"0.00 Ft"}}]
[{"$f":"ÉrtékesítésiÉv","v":2012},{"$nulls":11},{"$f":"MájusiÉrtékesítés[Szállítási költségek]-MájusiÉrtékesítés[Szállítási díjak]","v":{"v":0,"d":"0.00 Ft"}},{"$f":"MájusiÉrtékesítés[Értékesítési nyereség/veszteség]+MájusiÉrtékesítés[Szállítási nyereség/veszteség]","v":{"v":0,"d":"0.00 Ft"}}]
[{"$nulls":12},{"$f":"MájusiÉrtékesítés[Szállítási költségek]-MájusiÉrtékesítés[Szállítási díjak]","v":{"v":0,"d":"0.00 Ft"}},{"$f":"MájusiÉrtékesítés[Értékesítési nyereség/veszteség]+MájusiÉrtékesítés[Szállítási nyereség/veszteség]","v":{"v":0,"d":"0.00 Ft"}}]
["Összes\nnyereség/veszteség",{"$nulls":11},{"$f":"MájusiÉrtékesítés[Szállítási költségek]-MájusiÉrtékesítés[Szállítási díjak]","v":{"v":0,"d":"0.00 Ft"}},{"$f":"MájusiÉrtékesítés[Értékesítési nyereség/veszteség]+MájusiÉrtékesítés[Szállítási nyereség/veszteség]","v":{"v":0,"d":"0.00 Ft"}}]
[{"$f":"MájusiÉrtékesítés[[#Totals],[Összes\nnyereség/veszteség]]","v":{"v":0,"d":"0.00 Ft"}},{"$nulls":11},{"$f":"MájusiÉrtékesítés[Szállítási költségek]-MájusiÉrtékesítés[Szállítási díjak]","v":{"v":0,"d":"0.00 Ft"}},{"$f":"MájusiÉrtékesítés[Értékesítési nyereség/veszteség]+MájusiÉrtékesítés[Szállítási nyereség/veszteség]","v":{"v":0,"d":"0.00 Ft"}}]
[null,null," Összesen",{"$f":"\"Értékesített cikkek száma: \"&SUBTOTAL(103,MájusiÉrtékesítés[Tétel megnevezése])","v":"Értékesített cikkek száma: 0"},{"$f":"SUBTOTAL(109,MájusiÉrtékesítés[Beszerzési ár])","v":{"v":0,"d":"0.00 Ft"}},{"$f":"SUBTOTAL(109,MájusiÉrtékesítés[Eladási ár])","v":{"v":0,"d":"0.00 Ft"}},{"$f":"SUBTOTAL(109,MájusiÉrtékesítés[Online szolgáltatási díjak])","v":{"v":0,"d":"0.00 Ft"}},{"$f":"SUBTOTAL(109,MájusiÉrtékesítés[PayPal\nszolgáltatás díja])","v":{"v":0,"d":"0.00 Ft"}},{"$f":"SUBTOTAL(109,MájusiÉrtékesítés[Hitelkártyadíjak])","v":{"v":0,"d":"0.00 Ft"}},{"$f":"SUBTOTAL(109,MájusiÉrtékesítés[Szállítási költségek])","v":{"v":0,"d":"0.00 Ft"}},{"$f":"SUBTOTAL(109,MájusiÉrtékesítés[Szállítási díjak])","v":{"v":0,"d":"0.00 Ft"}},{"$f":"SUBTOTAL(109,MájusiÉrtékesítés[Értékesítési nyereség/veszteség])","v":{"v":0,"d":"0.00 Ft"}},{"$f":"SUBTOTAL(109,MájusiÉrtékesítés[Szállítási nyereség/veszteség])","v":{"v":0,"d":"0.00 Ft"}},{"$f":"SUBTOTAL(109,MájusiÉrtékesítés[Összes\nnyereség/veszteség])","v":{"v":0,"d":"0.00 Ft"}}]
["Nyereség/veszteség alakulása"]

{"sheet":"Június","index":5,"n_rows":9,"n_cols":14,"rows_kept":9,"merged":[[3,0,4,0],[6,0,7,0]]}
["JÚNIUS"]
["Online értékesítések",null,"Árverés azonosítója","Tétel megnevezése","Beszerzési ár","Eladási ár","Online szolgáltatási díjak","PayPal\nszolgáltatás díja","Hitelkártyadíjak","Szállítási költségek","Szállítási díjak","Értékesítési nyereség/veszteség","Szállítási nyereség/veszteség","Összes\nnyereség/veszteség"]
["Év",{"$nulls":11},{"$f":"JúniusiÉrtékesítés[Szállítási költségek]-JúniusiÉrtékesítés[Szállítási díjak]","v":{"v":0,"d":"0.00 Ft"}},{"$f":"JúniusiÉrtékesítés[Értékesítési nyereség/veszteség]+JúniusiÉrtékesítés[Szállítási nyereség/veszteség]","v":{"v":0,"d":"0.00 Ft"}}]
[{"$f":"ÉrtékesítésiÉv","v":2012},{"$nulls":11},{"$f":"JúniusiÉrtékesítés[Szállítási költségek]-JúniusiÉrtékesítés[Szállítási díjak]","v":{"v":0,"d":"0.00 Ft"}},{"$f":"JúniusiÉrtékesítés[Értékesítési nyereség/veszteség]+JúniusiÉrtékesítés[Szállítási nyereség/veszteség]","v":{"v":0,"d":"0.00 Ft"}}]
[{"$nulls":12},{"$f":"JúniusiÉrtékesítés[Szállítási költségek]-JúniusiÉrtékesítés[Szállítási díjak]","v":{"v":0,"d":"0.00 Ft"}},{"$f":"JúniusiÉrtékesítés[Értékesítési nyereség/veszteség]+JúniusiÉrtékesítés[Szállítási nyereség/veszteség]","v":{"v":0,"d":"0.00 Ft"}}]
["Összes\nnyereség/veszteség",{"$nulls":11},{"$f":"JúniusiÉrtékesítés[Szállítási költségek]-JúniusiÉrtékesítés[Szállítási díjak]","v":{"v":0,"d":"0.00 Ft"}},{"$f":"JúniusiÉrtékesítés[Értékesítési nyereség/veszteség]+JúniusiÉrtékesítés[Szállítási nyereség/veszteség]","v":{"v":0,"d":"0.00 Ft"}}]
[{"$f":"JúniusiÉrtékesítés[[#Totals],[Összes\nnyereség/veszteség]]","v":{"v":0,"d":"0.00 Ft"}},{"$nulls":11},{"$f":"JúniusiÉrtékesítés[Szállítási költségek]-JúniusiÉrtékesítés[Szállítási díjak]","v":{"v":0,"d":"0.00 Ft"}},{"$f":"JúniusiÉrtékesítés[Értékesítési nyereség/veszteség]+JúniusiÉrtékesítés[Szállítási nyereség/veszteség]","v":{"v":0,"d":"0.00 Ft"}}]
[null,null," Összesen",{"$f":"\"Értékesített cikkek száma: \"&SUBTOTAL(103,JúniusiÉrtékesítés[Tétel megnevezése])","v":"Értékesített cikkek száma: 0"},{"$f":"SUBTOTAL(109,JúniusiÉrtékesítés[Beszerzési ár])","v":{"v":0,"d":"0.00 Ft"}},{"$f":"SUBTOTAL(109,JúniusiÉrtékesítés[Eladási ár])","v":{"v":0,"d":"0.00 Ft"}},{"$f":"SUBTOTAL(109,JúniusiÉrtékesítés[Online szolgáltatási díjak])","v":{"v":0,"d":"0.00 Ft"}},{"$f":"SUBTOTAL(109,JúniusiÉrtékesítés[PayPal\nszolgáltatás díja])","v":{"v":0,"d":"0.00 Ft"}},{"$f":"SUBTOTAL(109,JúniusiÉrtékesítés[Hitelkártyadíjak])","v":{"v":0,"d":"0.00 Ft"}},{"$f":"SUBTOTAL(109,JúniusiÉrtékesítés[Szállítási költségek])","v":{"v":0,"d":"0.00 Ft"}},{"$f":"SUBTOTAL(109,JúniusiÉrtékesítés[Szállítási díjak])","v":{"v":0,"d":"0.00 Ft"}},{"$f":"SUBTOTAL(109,JúniusiÉrtékesítés[Értékesítési nyereség/veszteség])","v":{"v":0,"d":"0.00 Ft"}},{"$f":"SUBTOTAL(109,JúniusiÉrtékesítés[Szállítási nyereség/veszteség])","v":{"v":0,"d":"0.00 Ft"}},{"$f":"SUBTOTAL(109,JúniusiÉrtékesítés[Összes\nnyereség/veszteség])","v":{"v":0,"d":"0.00 Ft"}}]
["Nyereség/veszteség alakulása"]

{"sheet":"Július","index":6,"n_rows":9,"n_cols":14,"rows_kept":9,"merged":[[3,0,4,0],[6,0,7,0]]}
["JÚLIUS"]
["Online értékesítések",null,"Árverés azonosítója","Tétel megnevezése","Beszerzési ár","Eladási ár","Online szolgáltatási díjak","PayPal\nszolgáltatás díja","Hitelkártyadíjak","Szállítási költségek","Szállítási díjak","Értékesítési nyereség/veszteség","Szállítási nyereség/veszteség","Összes\nnyereség/veszteség"]
["Év",{"$nulls":11},{"$f":"JúliusiÉrtékesítés[Szállítási költségek]-JúliusiÉrtékesítés[Szállítási díjak]","v":{"v":0,"d":"0.00 Ft"}},{"$f":"JúliusiÉrtékesítés[Értékesítési nyereség/veszteség]+JúliusiÉrtékesítés[Szállítási nyereség/veszteség]","v":{"v":0,"d":"0.00 Ft"}}]
[{"$f":"ÉrtékesítésiÉv","v":2012},{"$nulls":11},{"$f":"JúliusiÉrtékesítés[Szállítási költségek]-JúliusiÉrtékesítés[Szállítási díjak]","v":{"v":0,"d":"0.00 Ft"}},{"$f":"JúliusiÉrtékesítés[Értékesítési nyereség/veszteség]+JúliusiÉrtékesítés[Szállítási nyereség/veszteség]","v":{"v":0,"d":"0.00 Ft"}}]
[{"$nulls":12},{"$f":"JúliusiÉrtékesítés[Szállítási költségek]-JúliusiÉrtékesítés[Szállítási díjak]","v":{"v":0,"d":"0.00 Ft"}},{"$f":"JúliusiÉrtékesítés[Értékesítési nyereség/veszteség]+JúliusiÉrtékesítés[Szállítási nyereség/veszteség]","v":{"v":0,"d":"0.00 Ft"}}]
["Összes\nnyereség/veszteség",{"$nulls":11},{"$f":"JúliusiÉrtékesítés[Szállítási költségek]-JúliusiÉrtékesítés[Szállítási díjak]","v":{"v":0,"d":"0.00 Ft"}},{"$f":"JúliusiÉrtékesítés[Értékesítési nyereség/veszteség]+JúliusiÉrtékesítés[Szállítási nyereség/veszteség]","v":{"v":0,"d":"0.00 Ft"}}]
[{"$f":"JúliusiÉrtékesítés[[#Totals],[Összes\nnyereség/veszteség]]","v":{"v":0,"d":"0.00 Ft"}},{"$nulls":11},{"$f":"JúliusiÉrtékesítés[Szállítási költségek]-JúliusiÉrtékesítés[Szállítási díjak]","v":{"v":0,"d":"0.00 Ft"}},{"$f":"JúliusiÉrtékesítés[Értékesítési nyereség/veszteség]+JúliusiÉrtékesítés[Szállítási nyereség/veszteség]","v":{"v":0,"d":"0.00 Ft"}}]
[null,null," Összesen",{"$f":"\"Értékesített cikkek száma: \"&SUBTOTAL(103,JúliusiÉrtékesítés[Tétel megnevezése])","v":"Értékesített cikkek száma: 0"},{"$f":"SUBTOTAL(109,JúliusiÉrtékesítés[Beszerzési ár])","v":{"v":0,"d":"0.00 Ft"}},{"$f":"SUBTOTAL(109,JúliusiÉrtékesítés[Eladási ár])","v":{"v":0,"d":"0.00 Ft"}},{"$f":"SUBTOTAL(109,JúliusiÉrtékesítés[Online szolgáltatási díjak])","v":{"v":0,"d":"0.00 Ft"}},{"$f":"SUBTOTAL(109,JúliusiÉrtékesítés[PayPal\nszolgáltatás díja])","v":{"v":0,"d":"0.00 Ft"}},{"$f":"SUBTOTAL(109,JúliusiÉrtékesítés[Hitelkártyadíjak])","v":{"v":0,"d":"0.00 Ft"}},{"$f":"SUBTOTAL(109,JúliusiÉrtékesítés[Szállítási költségek])","v":{"v":0,"d":"0.00 Ft"}},{"$f":"SUBTOTAL(109,JúliusiÉrtékesítés[Szállítási díjak])","v":{"v":0,"d":"0.00 Ft"}},{"$f":"SUBTOTAL(109,JúliusiÉrtékesítés[Értékesítési nyereség/veszteség])","v":{"v":0,"d":"0.00 Ft"}},{"$f":"SUBTOTAL(109,JúliusiÉrtékesítés[Szállítási nyereség/veszteség])","v":{"v":0,"d":"0.00 Ft"}},{"$f":"SUBTOTAL(109,JúliusiÉrtékesítés[Összes\nnyereség/veszteség])","v":{"v":0,"d":"0.00 Ft"}}]
["Nyereség/veszteség alakulása"]

{"sheet":"Augusztus","index":7,"n_rows":9,"n_cols":14,"rows_kept":9,"merged":[[3,0,4,0],[6,0,7,0]]}
["AUGUSZTUS"]
["Online értékesítések",null,"Árverés azonosítója","Tétel megnevezése","Beszerzési ár","Eladási ár","Online szolgáltatási díjak","PayPal\nszolgáltatás díja","Hitelkártyadíjak","Szállítási költségek","Szállítási díjak","Értékesítési nyereség/veszteség","Szállítási nyereség/veszteség","Összes\nnyereség/veszteség"]
["Év",{"$nulls":11},{"$f":"AugusztusiÉrtékesítés[Szállítási költségek]-AugusztusiÉrtékesítés[Szállítási díjak]","v":{"v":0,"d":"0.00 Ft"}},{"$f":"AugusztusiÉrtékesítés[Értékesítési nyereség/veszteség]+AugusztusiÉrtékesítés[Szállítási nyereség/veszteség]","v":{"v":0,"d":"0.00 Ft"}}]
[{"$f":"ÉrtékesítésiÉv","v":2012},{"$nulls":11},{"$f":"AugusztusiÉrtékesítés[Szállítási költségek]-AugusztusiÉrtékesítés[Szállítási díjak]","v":{"v":0,"d":"0.00 Ft"}},{"$f":"AugusztusiÉrtékesítés[Értékesítési nyereség/veszteség]+AugusztusiÉrtékesítés[Szállítási nyereség/veszteség]","v":{"v":0,"d":"0.00 Ft"}}]
[{"$nulls":12},{"$f":"AugusztusiÉrtékesítés[Szállítási költségek]-AugusztusiÉrtékesítés[Szállítási díjak]","v":{"v":0,"d":"0.00 Ft"}},{"$f":"AugusztusiÉrtékesítés[Értékesítési nyereség/veszteség]+AugusztusiÉrtékesítés[Szállítási nyereség/veszteség]","v":{"v":0,"d":"0.00 Ft"}}]
["Összes\nnyereség/veszteség",{"$nulls":11},{"$f":"AugusztusiÉrtékesítés[Szállítási költségek]-AugusztusiÉrtékesítés[Szállítási díjak]","v":{"v":0,"d":"0.00 Ft"}},{"$f":"AugusztusiÉrtékesítés[Értékesítési nyereség/veszteség]+AugusztusiÉrtékesítés[Szállítási nyereség/veszteség]","v":{"v":0,"d":"0.00 Ft"}}]
[{"$f":"AugusztusiÉrtékesítés[[#Totals],[Összes\nnyereség/veszteség]]","v":{"v":0,"d":"0.00 Ft"}},{"$nulls":11},{"$f":"AugusztusiÉrtékesítés[Szállítási költségek]-AugusztusiÉrtékesítés[Szállítási díjak]","v":{"v":0,"d":"0.00 Ft"}},{"$f":"AugusztusiÉrtékesítés[Értékesítési nyereség/veszteség]+AugusztusiÉrtékesítés[Szállítási nyereség/veszteség]","v":{"v":0,"d":"0.00 Ft"}}]
[null,null," Összesen",{"$f":"\"Értékesített cikkek száma: \"&SUBTOTAL(103,AugusztusiÉrtékesítés[Tétel megnevezése])","v":"Értékesített cikkek száma: 0"},{"$f":"SUBTOTAL(109,AugusztusiÉrtékesítés[Beszerzési ár])","v":{"v":0,"d":"0.00 Ft"}},{"$f":"SUBTOTAL(109,AugusztusiÉrtékesítés[Eladási ár])","v":{"v":0,"d":"0.00 Ft"}},{"$f":"SUBTOTAL(109,AugusztusiÉrtékesítés[Online szolgáltatási díjak])","v":{"v":0,"d":"0.00 Ft"}},{"$f":"SUBTOTAL(109,AugusztusiÉrtékesítés[PayPal\nszolgáltatás díja])","v":{"v":0,"d":"0.00 Ft"}},{"$f":"SUBTOTAL(109,AugusztusiÉrtékesítés[Hitelkártyadíjak])","v":{"v":0,"d":"0.00 Ft"}},{"$f":"SUBTOTAL(109,AugusztusiÉrtékesítés[Szállítási költségek])","v":{"v":0,"d":"0.00 Ft"}},{"$f":"SUBTOTAL(109,AugusztusiÉrtékesítés[Szállítási díjak])","v":{"v":0,"d":"0.00 Ft"}},{"$f":"SUBTOTAL(109,AugusztusiÉrtékesítés[Értékesítési nyereség/veszteség])","v":{"v":0,"d":"0.00 Ft"}},{"$f":"SUBTOTAL(109,AugusztusiÉrtékesítés[Szállítási nyereség/veszteség])","v":{"v":0,"d":"0.00 Ft"}},{"$f":"SUBTOTAL(109,AugusztusiÉrtékesítés[Összes\nnyereség/veszteség])","v":{"v":0,"d":"0.00 Ft"}}]
["Nyereség/veszteség alakulása"]

{"sheet":"Szeptember","index":8,"n_rows":9,"n_cols":14,"rows_kept":9,"merged":[[3,0,4,0],[6,0,7,0]]}
["SZEPTEMBER"]
["Online értékesítések",null,"Árverés azonosítója","Tétel megnevezése","Beszerzési ár","Eladási ár","Online szolgáltatási díjak","PayPal\nszolgáltatás díja","Hitelkártyadíjak","Szállítási költségek","Szállítási díjak","Értékesítési nyereség/veszteség","Szállítási nyereség/veszteség","Összes\nnyereség/veszteség"]
["Év",{"$nulls":11},{"$f":"SzeptemberiÉrtékesítés[Szállítási költségek]-SzeptemberiÉrtékesítés[Szállítási díjak]","v":{"v":0,"d":"0.00 Ft"}},{"$f":"SzeptemberiÉrtékesítés[Értékesítési nyereség/veszteség]+SzeptemberiÉrtékesítés[Szállítási nyereség/veszteség]","v":{"v":0,"d":"0.00 Ft"}}]
[{"$f":"ÉrtékesítésiÉv","v":2012},{"$nulls":11},{"$f":"SzeptemberiÉrtékesítés[Szállítási költségek]-SzeptemberiÉrtékesítés[Szállítási díjak]","v":{"v":0,"d":"0.00 Ft"}},{"$f":"SzeptemberiÉrtékesítés[Értékesítési nyereség/veszteség]+SzeptemberiÉrtékesítés[Szállítási nyereség/veszteség]","v":{"v":0,"d":"0.00 Ft"}}]
[{"$nulls":12},{"$f":"SzeptemberiÉrtékesítés[Szállítási költségek]-SzeptemberiÉrtékesítés[Szállítási díjak]","v":{"v":0,"d":"0.00 Ft"}},{"$f":"SzeptemberiÉrtékesítés[Értékesítési nyereség/veszteség]+SzeptemberiÉrtékesítés[Szállítási nyereség/veszteség]","v":{"v":0,"d":"0.00 Ft"}}]
["Összes\nnyereség/veszteség",{"$nulls":11},{"$f":"SzeptemberiÉrtékesítés[Szállítási költségek]-SzeptemberiÉrtékesítés[Szállítási díjak]","v":{"v":0,"d":"0.00 Ft"}},{"$f":"SzeptemberiÉrtékesítés[Értékesítési nyereség/veszteség]+SzeptemberiÉrtékesítés[Szállítási nyereség/veszteség]","v":{"v":0,"d":"0.00 Ft"}}]
[{"$f":"SzeptemberiÉrtékesítés[[#Totals],[Összes\nnyereség/veszteség]]","v":{"v":0,"d":"0.00 Ft"}},{"$nulls":11},{"$f":"SzeptemberiÉrtékesítés[Szállítási költségek]-SzeptemberiÉrtékesítés[Szállítási díjak]","v":{"v":0,"d":"0.00 Ft"}},{"$f":"SzeptemberiÉrtékesítés[Értékesítési nyereség/veszteség]+SzeptemberiÉrtékesítés[Szállítási nyereség/veszteség]","v":{"v":0,"d":"0.00 Ft"}}]
[null,null," Összesen",{"$f":"\"Értékesített cikkek száma: \"&SUBTOTAL(103,SzeptemberiÉrtékesítés[Tétel megnevezése])","v":"Értékesített cikkek száma: 0"},{"$f":"SUBTOTAL(109,SzeptemberiÉrtékesítés[Beszerzési ár])","v":{"v":0,"d":"0.00 Ft"}},{"$f":"SUBTOTAL(109,SzeptemberiÉrtékesítés[Eladási ár])","v":{"v":0,"d":"0.00 Ft"}},{"$f":"SUBTOTAL(109,SzeptemberiÉrtékesítés[Online szolgáltatási díjak])","v":{"v":0,"d":"0.00 Ft"}},{"$f":"SUBTOTAL(109,SzeptemberiÉrtékesítés[PayPal\nszolgáltatás díja])","v":{"v":0,"d":"0.00 Ft"}},{"$f":"SUBTOTAL(109,SzeptemberiÉrtékesítés[Hitelkártyadíjak])","v":{"v":0,"d":"0.00 Ft"}},{"$f":"SUBTOTAL(109,SzeptemberiÉrtékesítés[Szállítási költségek])","v":{"v":0,"d":"0.00 Ft"}},{"$f":"SUBTOTAL(109,SzeptemberiÉrtékesítés[Szállítási díjak])","v":{"v":0,"d":"0.00 Ft"}},{"$f":"SUBTOTAL(109,SzeptemberiÉrtékesítés[Értékesítési nyereség/veszteség])","v":{"v":0,"d":"0.00 Ft"}},{"$f":"SUBTOTAL(109,SzeptemberiÉrtékesítés[Szállítási nyereség/veszteség])","v":{"v":0,"d":"0.00 Ft"}},{"$f":"SUBTOTAL(109,SzeptemberiÉrtékesítés[Összes\nnyereség/veszteség])","v":{"v":0,"d":"0.00 Ft"}}]
["Nyereség/veszteség alakulása"]

{"sheet":"Október","index":9,"n_rows":9,"n_cols":14,"rows_kept":9,"merged":[[3,0,4,0],[6,0,7,0]]}
["OKTÓBER"]
["Online értékesítések",null,"Árverés azonosítója","Tétel megnevezése","Beszerzési ár","Eladási ár","Online szolgáltatási díjak","PayPal\nszolgáltatás díja","Hitelkártyadíjak","Szállítási költségek","Szállítási díjak","Értékesítési nyereség/veszteség","Szállítási nyereség/veszteség","Összes\nnyereség/veszteség"]
["Év",{"$nulls":11},{"$f":"OktóberiÉrtékesítés[Szállítási költségek]-OktóberiÉrtékesítés[Szállítási díjak]","v":{"v":0,"d":"0.00 Ft"}},{"$f":"OktóberiÉrtékesítés[Értékesítési nyereség/veszteség]+OktóberiÉrtékesítés[Szállítási nyereség/veszteség]","v":{"v":0,"d":"0.00 Ft"}}]
[{"$f":"ÉrtékesítésiÉv","v":2012},{"$nulls":11},{"$f":"OktóberiÉrtékesítés[Szállítási költségek]-OktóberiÉrtékesítés[Szállítási díjak]","v":{"v":0,"d":"0.00 Ft"}},{"$f":"OktóberiÉrtékesítés[Értékesítési nyereség/veszteség]+OktóberiÉrtékesítés[Szállítási nyereség/veszteség]","v":{"v":0,"d":"0.00 Ft"}}]
[{"$nulls":12},{"$f":"OktóberiÉrtékesítés[Szállítási költségek]-OktóberiÉrtékesítés[Szállítási díjak]","v":{"v":0,"d":"0.00 Ft"}},{"$f":"OktóberiÉrtékesítés[Értékesítési nyereség/veszteség]+OktóberiÉrtékesítés[Szállítási nyereség/veszteség]","v":{"v":0,"d":"0.00 Ft"}}]
["Összes\nnyereség/veszteség",{"$nulls":11},{"$f":"OktóberiÉrtékesítés[Szállítási költségek]-OktóberiÉrtékesítés[Szállítási díjak]","v":{"v":0,"d":"0.00 Ft"}},{"$f":"OktóberiÉrtékesítés[Értékesítési nyereség/veszteség]+OktóberiÉrtékesítés[Szállítási nyereség/veszteség]","v":{"v":0,"d":"0.00 Ft"}}]
[{"$f":"OktóberiÉrtékesítés[[#Totals],[Összes\nnyereség/veszteség]]","v":{"v":0,"d":"0.00 Ft"}},{"$nulls":11},{"$f":"OktóberiÉrtékesítés[Szállítási költségek]-OktóberiÉrtékesítés[Szállítási díjak]","v":{"v":0,"d":"0.00 Ft"}},{"$f":"OktóberiÉrtékesítés[Értékesítési nyereség/veszteség]+OktóberiÉrtékesítés[Szállítási nyereség/veszteség]","v":{"v":0,"d":"0.00 Ft"}}]
[null,null," Összesen",{"$f":"\"Értékesített cikkek száma: \"&SUBTOTAL(103,OktóberiÉrtékesítés[Tétel megnevezése])","v":"Értékesített cikkek száma: 0"},{"$f":"SUBTOTAL(109,OktóberiÉrtékesítés[Beszerzési ár])","v":{"v":0,"d":"0.00 Ft"}},{"$f":"SUBTOTAL(109,OktóberiÉrtékesítés[Eladási ár])","v":{"v":0,"d":"0.00 Ft"}},{"$f":"SUBTOTAL(109,OktóberiÉrtékesítés[Online szolgáltatási díjak])","v":{"v":0,"d":"0.00 Ft"}},{"$f":"SUBTOTAL(109,OktóberiÉrtékesítés[PayPal\nszolgáltatás díja])","v":{"v":0,"d":"0.00 Ft"}},{"$f":"SUBTOTAL(109,OktóberiÉrtékesítés[Hitelkártyadíjak])","v":{"v":0,"d":"0.00 Ft"}},{"$f":"SUBTOTAL(109,OktóberiÉrtékesítés[Szállítási költségek])","v":{"v":0,"d":"0.00 Ft"}},{"$f":"SUBTOTAL(109,OktóberiÉrtékesítés[Szállítási díjak])","v":{"v":0,"d":"0.00 Ft"}},{"$f":"SUBTOTAL(109,OktóberiÉrtékesítés[Értékesítési nyereség/veszteség])","v":{"v":0,"d":"0.00 Ft"}},{"$f":"SUBTOTAL(109,OktóberiÉrtékesítés[Szállítási nyereség/veszteség])","v":{"v":0,"d":"0.00 Ft"}},{"$f":"SUBTOTAL(109,OktóberiÉrtékesítés[Összes\nnyereség/veszteség])","v":{"v":0,"d":"0.00 Ft"}}]
["Nyereség/veszteség alakulása"]

{"sheet":"November","index":10,"n_rows":9,"n_cols":14,"rows_kept":9,"merged":[[3,0,4,0],[6,0,7,0]]}
["NOVEMBER"]
["Online értékesítések",null,"Árverés azonosítója","Tétel megnevezése","Beszerzési ár","Eladási ár","Online szolgáltatási díjak","PayPal\nszolgáltatás díja","Hitelkártyadíjak","Szállítási költségek","Szállítási díjak","Értékesítési nyereség/veszteség","Szállítási nyereség/veszteség","Összes\nnyereség/veszteség"]
["Év",{"$nulls":11},{"$f":"NovemberiÉrtékesítés[Szállítási költségek]-NovemberiÉrtékesítés[Szállítási díjak]","v":{"v":0,"d":"0.00 Ft"}},{"$f":"NovemberiÉrtékesítés[Értékesítési nyereség/veszteség]+NovemberiÉrtékesítés[Szállítási nyereség/veszteség]","v":{"v":0,"d":"0.00 Ft"}}]
[{"$f":"ÉrtékesítésiÉv","v":2012},{"$nulls":11},{"$f":"NovemberiÉrtékesítés[Szállítási költségek]-NovemberiÉrtékesítés[Szállítási díjak]","v":{"v":0,"d":"0.00 Ft"}},{"$f":"NovemberiÉrtékesítés[Értékesítési nyereség/veszteség]+NovemberiÉrtékesítés[Szállítási nyereség/veszteség]","v":{"v":0,"d":"0.00 Ft"}}]
[{"$nulls":12},{"$f":"NovemberiÉrtékesítés[Szállítási költségek]-NovemberiÉrtékesítés[Szállítási díjak]","v":{"v":0,"d":"0.00 Ft"}},{"$f":"NovemberiÉrtékesítés[Értékesítési nyereség/veszteség]+NovemberiÉrtékesítés[Szállítási nyereség/veszteség]","v":{"v":0,"d":"0.00 Ft"}}]
["Összes\nnyereség/veszteség",{"$nulls":11},{"$f":"NovemberiÉrtékesítés[Szállítási költségek]-NovemberiÉrtékesítés[Szállítási díjak]","v":{"v":0,"d":"0.00 Ft"}},{"$f":"NovemberiÉrtékesítés[Értékesítési nyereség/veszteség]+NovemberiÉrtékesítés[Szállítási nyereség/veszteség]","v":{"v":0,"d":"0.00 Ft"}}]
[{"$f":"NovemberiÉrtékesítés[[#Totals],[Összes\nnyereség/veszteség]]","v":{"v":0,"d":"0.00 Ft"}},{"$nulls":11},{"$f":"NovemberiÉrtékesítés[Szállítási költségek]-NovemberiÉrtékesítés[Szállítási díjak]","v":{"v":0,"d":"0.00 Ft"}},{"$f":"NovemberiÉrtékesítés[Értékesítési nyereség/veszteség]+NovemberiÉrtékesítés[Szállítási nyereség/veszteség]","v":{"v":0,"d":"0.00 Ft"}}]
[null,null," Összesen",{"$f":"\"Értékesített cikkek száma: \"&SUBTOTAL(103,NovemberiÉrtékesítés[Tétel megnevezése])","v":"Értékesített cikkek száma: 0"},{"$f":"SUBTOTAL(109,NovemberiÉrtékesítés[Beszerzési ár])","v":{"v":0,"d":"0.00 Ft"}},{"$f":"SUBTOTAL(109,NovemberiÉrtékesítés[Eladási ár])","v":{"v":0,"d":"0.00 Ft"}},{"$f":"SUBTOTAL(109,NovemberiÉrtékesítés[Online szolgáltatási díjak])","v":{"v":0,"d":"0.00 Ft"}},{"$f":"SUBTOTAL(109,NovemberiÉrtékesítés[PayPal\nszolgáltatás díja])","v":{"v":0,"d":"0.00 Ft"}},{"$f":"SUBTOTAL(109,NovemberiÉrtékesítés[Hitelkártyadíjak])","v":{"v":0,"d":"0.00 Ft"}},{"$f":"SUBTOTAL(109,NovemberiÉrtékesítés[Szállítási költségek])","v":{"v":0,"d":"0.00 Ft"}},{"$f":"SUBTOTAL(109,NovemberiÉrtékesítés[Szállítási díjak])","v":{"v":0,"d":"0.00 Ft"}},{"$f":"SUBTOTAL(109,NovemberiÉrtékesítés[Értékesítési nyereség/veszteség])","v":{"v":0,"d":"0.00 Ft"}},{"$f":"SUBTOTAL(109,NovemberiÉrtékesítés[Szállítási nyereség/veszteség])","v":{"v":0,"d":"0.00 Ft"}},{"$f":"SUBTOTAL(109,NovemberiÉrtékesítés[Összes\nnyereség/veszteség])","v":{"v":0,"d":"0.00 Ft"}}]
["Nyereség/veszteség alakulása"]

{"sheet":"December","index":11,"n_rows":9,"n_cols":14,"rows_kept":9,"merged":[[3,0,4,0],[6,0,7,0]]}
["DECEMBER"]
["Online értékesítések",null,"Árverés azonosítója","Tétel megnevezése","Beszerzési ár","Eladási ár","Online szolgáltatási díjak","PayPal\nszolgáltatás díja","Hitelkártyadíjak","Szállítási költségek","Szállítási díjak","Értékesítési nyereség/veszteség","Szállítási nyereség/veszteség","Összes\nnyereség/veszteség"]
["Év",{"$nulls":11},{"$f":"DecemberiÉrtékesítés[Szállítási költségek]-DecemberiÉrtékesítés[Szállítási díjak]","v":{"v":0,"d":"0.00 Ft"}},{"$f":"DecemberiÉrtékesítés[Értékesítési nyereség/veszteség]+DecemberiÉrtékesítés[Szállítási nyereség/veszteség]","v":{"v":0,"d":"0.00 Ft"}}]
[{"$f":"ÉrtékesítésiÉv","v":2012},{"$nulls":11},{"$f":"DecemberiÉrtékesítés[Szállítási költségek]-DecemberiÉrtékesítés[Szállítási díjak]","v":{"v":0,"d":"0.00 Ft"}},{"$f":"DecemberiÉrtékesítés[Értékesítési nyereség/veszteség]+DecemberiÉrtékesítés[Szállítási nyereség/veszteség]","v":{"v":0,"d":"0.00 Ft"}}]
[{"$nulls":12},{"$f":"DecemberiÉrtékesítés[Szállítási költségek]-DecemberiÉrtékesítés[Szállítási díjak]","v":{"v":0,"d":"0.00 Ft"}},{"$f":"DecemberiÉrtékesítés[Értékesítési nyereség/veszteség]+DecemberiÉrtékesítés[Szállítási nyereség/veszteség]","v":{"v":0,"d":"0.00 Ft"}}]
["Összes\nnyereség/veszteség",{"$nulls":11},{"$f":"DecemberiÉrtékesítés[Szállítási költségek]-DecemberiÉrtékesítés[Szállítási díjak]","v":{"v":0,"d":"0.00 Ft"}},{"$f":"DecemberiÉrtékesítés[Értékesítési nyereség/veszteség]+DecemberiÉrtékesítés[Szállítási nyereség/veszteség]","v":{"v":0,"d":"0.00 Ft"}}]
[{"$f":"DecemberiÉrtékesítés[[#Totals],[Összes\nnyereség/veszteség]]","v":{"v":0,"d":"0.00 Ft"}},{"$nulls":11},{"$f":"DecemberiÉrtékesítés[Szállítási költségek]-DecemberiÉrtékesítés[Szállítási díjak]","v":{"v":0,"d":"0.00 Ft"}},{"$f":"DecemberiÉrtékesítés[Értékesítési nyereség/veszteség]+DecemberiÉrtékesítés[Szállítási nyereség/veszteség]","v":{"v":0,"d":"0.00 Ft"}}]
[null,null," Összesen",{"$f":"\"Értékesített cikkek száma: \"&SUBTOTAL(103,DecemberiÉrtékesítés[Tétel megnevezése])","v":"Értékesített cikkek száma: 0"},{"$f":"SUBTOTAL(109,DecemberiÉrtékesítés[Beszerzési ár])","v":{"v":0,"d":"0.00 Ft"}},{"$f":"SUBTOTAL(109,DecemberiÉrtékesítés[Eladási ár])","v":{"v":0,"d":"0.00 Ft"}},{"$f":"SUBTOTAL(109,DecemberiÉrtékesítés[Online szolgáltatási díjak])","v":{"v":0,"d":"0.00 Ft"}},{"$f":"SUBTOTAL(109,DecemberiÉrtékesítés[PayPal\nszolgáltatás díja])","v":{"v":0,"d":"0.00 Ft"}},{"$f":"SUBTOTAL(109,DecemberiÉrtékesítés[Hitelkártyadíjak])","v":{"v":0,"d":"0.00 Ft"}},{"$f":"SUBTOTAL(109,DecemberiÉrtékesítés[Szállítási költségek])","v":{"v":0,"d":"0.00 Ft"}},{"$f":"SUBTOTAL(109,DecemberiÉrtékesítés[Szállítási díjak])","v":{"v":0,"d":"0.00 Ft"}},{"$f":"SUBTOTAL(109,DecemberiÉrtékesítés[Értékesítési nyereség/veszteség])","v":{"v":0,"d":"0.00 Ft"}},{"$f":"SUBTOTAL(109,DecemberiÉrtékesítés[Szállítási nyereség/veszteség])","v":{"v":0,"d":"0.00 Ft"}},{"$f":"SUBTOTAL(109,DecemberiÉrtékesítés[Összes\nnyereség/veszteség])","v":{"v":0,"d":"0.00 Ft"}}]
["Nyereség/veszteség alakulása"]

{"sheet":"Év eddigi adatainak összesítése","index":12,"n_rows":16,"n_cols":11,"rows_kept":16,"merged":[[3,0,4,0],[6,0,7,0]]}
["Eddigi éves érték"]
["Összesítés",null,"Nyereség/veszteség",{"$nulls":4},"Eddigi éves nyereség/veszteség"]
["Év",{"$nulls":6},"Hónap","Értékesítési nyereség/veszteség","Szállítási nyereség/veszteség","Összes\nnyereség/veszteség"]
[{"$f":"ÉrtékesítésiÉv","v":2012},{"$nulls":6},"Január",{"$f":"JanuáriÉrtékesítés[[#Totals],[Értékesítési nyereség/veszteség]]","v":{"v":79.5,"d":"79.50 Ft"}},{"$f":"JanuáriÉrtékesítés[[#Totals],[Szállítási nyereség/veszteség]]","v":{"v":9.5,"d":"9.50 Ft"}},{"$f":"IF(AND(ÉviAktuálisÖsszefoglaló[[#This Row],[Értékesítési nyereség/veszteség]]<>\"\",ÉviAktuálisÖsszefoglaló[[#This Row],[Szállítási nyereség/veszteség]]<>\"\"),ÉviAktuálisÖsszefoglaló[[#This Row],[Értékesítési nyereség/veszteség]]+ÉviAktuálisÖsszefoglaló[[#This Row],[Szállítási nyereség/veszteség]],\"\")","v":{"v":89,"d":"89.00 Ft"}}]
[{"$nulls":7},"Február",{"$f":"FebruáriÉrtékesítés[[#Totals],[Értékesítési nyereség/veszteség]]","v":{"v":212.3,"d":"212.30 Ft"}},{"$f":"FebruáriÉrtékesítés[[#Totals],[Szállítási nyereség/veszteség]]","v":{"v":12.3,"d":"12.30 Ft"}},{"$f":"IF(AND(ÉviAktuálisÖsszefoglaló[[#This Row],[Értékesítési nyereség/veszteség]]<>\"\",ÉviAktuálisÖsszefoglaló[[#This Row],[Szállítási nyereség/veszteség]]<>\"\"),ÉviAktuálisÖsszefoglaló[[#This Row],[Értékesítési nyereség/veszteség]]+ÉviAktuálisÖsszefoglaló[[#This Row],[Szállítási nyereség/veszteség]],\"\")","v":{"v":224.60000000000002,"d":"224.60 Ft"}}]
["Havi értékesítés alakulása:",{"$nulls":6},"Március",{"$f":"MárciusiÉrtékesítés[[#Totals],[Értékesítési nyereség/veszteség]]","v":{"v":0,"d":"0.00 Ft"}},{"$f":"MárciusiÉrtékesítés[[#Totals],[Szállítási nyereség/veszteség]]","v":{"v":0,"d":"0.00 Ft"}},{"$f":"IF(AND(ÉviAktuálisÖsszefoglaló[[#This Row],[Értékesítési nyereség/veszteség]]<>\"\",ÉviAktuálisÖsszefoglaló[[#This Row],[Szállítási nyereség/veszteség]]<>\"\"),ÉviAktuálisÖsszefoglaló[[#This Row],[Értékesítési nyereség/veszteség]]+ÉviAktuálisÖsszefoglaló[[#This Row],[Szállítási nyereség/veszteség]],\"\")","v":{"v":0,"d":"0.00 Ft"}}]
[{"$nulls":7},"Április",{"$f":"ÁprilisiÉrtékesítés[[#Totals],[Értékesítési nyereség/veszteség]]","v":{"v":0,"d":"0.00 Ft"}},{"$f":"ÁprilisiÉrtékesítés[[#Totals],[Szállítási nyereség/veszteség]]","v":{"v":0,"d":"0.00 Ft"}},{"$f":"IF(AND(ÉviAktuálisÖsszefoglaló[[#This Row],[Értékesítési nyereség/veszteség]]<>\"\",ÉviAktuálisÖsszefoglaló[[#This Row],[Szállítási nyereség/veszteség]]<>\"\"),ÉviAktuálisÖsszefoglaló[[#This Row],[Értékesítési nyereség/veszteség]]+ÉviAktuálisÖsszefoglaló[[#This Row],[Szállítási nyereség/veszteség]],\"\")","v":{"v":0,"d":"0.00 Ft"}}]
[{"$nulls":7},"Május",{"$f":"MájusiÉrtékesítés[[#Totals],[Értékesítési nyereség/veszteség]]","v":{"v":0,"d":"0.00 Ft"}},{"$f":"MájusiÉrtékesítés[[#Totals],[Szállítási nyereség/veszteség]]","v":{"v":0,"d":"0.00 Ft"}},{"$f":"IF(AND(ÉviAktuálisÖsszefoglaló[[#This Row],[Értékesítési nyereség/veszteség]]<>\"\",ÉviAktuálisÖsszefoglaló[[#This Row],[Szállítási nyereség/veszteség]]<>\"\"),ÉviAktuálisÖsszefoglaló[[#This Row],[Értékesítési nyereség/veszteség]]+ÉviAktuálisÖsszefoglaló[[#This Row],[Szállítási nyereség/veszteség]],\"\")","v":{"v":0,"d":"0.00 Ft"}}]
[{"$nulls":7},"Június",{"$f":"JúniusiÉrtékesítés[[#Totals],[Értékesítési nyereség/veszteség]]","v":{"v":0,"d":"0.00 Ft"}},{"$f":"JúniusiÉrtékesítés[[#Totals],[Szállítási nyereség/veszteség]]","v":{"v":0,"d":"0.00 Ft"}},{"$f":"IF(AND(ÉviAktuálisÖsszefoglaló[[#This Row],[Értékesítési nyereség/veszteség]]<>\"\",ÉviAktuálisÖsszefoglaló[[#This Row],[Szállítási nyereség/veszteség]]<>\"\"),ÉviAktuálisÖsszefoglaló[[#This Row],[Értékesítési nyereség/veszteség]]+ÉviAktuálisÖsszefoglaló[[#This Row],[Szállítási nyereség/veszteség]],\"\")","v":{"v":0,"d":"0.00 Ft"}}]
[{"$nulls":7},"Július",{"$f":"JúliusiÉrtékesítés[[#Totals],[Értékesítési nyereség/veszteség]]","v":{"v":0,"d":"0.00 Ft"}},{"$f":"JúliusiÉrtékesítés[[#Totals],[Szállítási nyereség/veszteség]]","v":{"v":0,"d":"0.00 Ft"}},{"$f":"IF(AND(ÉviAktuálisÖsszefoglaló[[#This Row],[Értékesítési nyereség/veszteség]]<>\"\",ÉviAktuálisÖsszefoglaló[[#This Row],[Szállítási nyereség/veszteség]]<>\"\"),ÉviAktuálisÖsszefoglaló[[#This Row],[Értékesítési nyereség/veszteség]]+ÉviAktuálisÖsszefoglaló[[#This Row],[Szállítási nyereség/veszteség]],\"\")","v":{"v":0,"d":"0.00 Ft"}}]
[{"$nulls":7},"Augusztus",{"$f":"AugusztusiÉrtékesítés[[#Totals],[Értékesítési nyereség/veszteség]]","v":{"v":0,"d":"0.00 Ft"}},{"$f":"AugusztusiÉrtékesítés[[#Totals],[Szállítási nyereség/veszteség]]","v":{"v":0,"d":"0.00 Ft"}},{"$f":"IF(AND(ÉviAktuálisÖsszefoglaló[[#This Row],[Értékesítési nyereség/veszteség]]<>\"\",ÉviAktuálisÖsszefoglaló[[#This Row],[Szállítási nyereség/veszteség]]<>\"\"),ÉviAktuálisÖsszefoglaló[[#This Row],[Értékesítési nyereség/veszteség]]+ÉviAktuálisÖsszefoglaló[[#This Row],[Szállítási nyereség/veszteség]],\"\")","v":{"v":0,"d":"0.00 Ft"}}]
[{"$nulls":7},"Szeptember",{"$f":"SzeptemberiÉrtékesítés[[#Totals],[Értékesítési nyereség/veszteség]]","v":{"v":0,"d":"0.00 Ft"}},{"$f":"SzeptemberiÉrtékesítés[[#Totals],[Szállítási nyereség/veszteség]]","v":{"v":0,"d":"0.00 Ft"}},{"$f":"IF(AND(ÉviAktuálisÖsszefoglaló[[#This Row],[Értékesítési nyereség/veszteség]]<>\"\",ÉviAktuálisÖsszefoglaló[[#This Row],[Szállítási nyereség/veszteség]]<>\"\"),ÉviAktuálisÖsszefoglaló[[#This Row],[Értékesítési nyereség/veszteség]]+ÉviAktuálisÖsszefoglaló[[#This Row],[Szállítási nyereség/veszteség]],\"\")","v":{"v":0,"d":"0.00 Ft"}}]
[{"$nulls":7},"Október",{"$f":"OktóberiÉrtékesítés[[#Totals],[Értékesítési nyereség/veszteség]]","v":{"v":0,"d":"0.00 Ft"}},{"$f":"OktóberiÉrtékesítés[[#Totals],[Szállítási nyereség/veszteség]]","v":{"v":0,"d":"0.00 Ft"}},{"$f":"IF(AND(ÉviAktuálisÖsszefoglaló[[#This Row],[Értékesítési nyereség/veszteség]]<>\"\",ÉviAktuálisÖsszefoglaló[[#This Row],[Szállítási nyereség/veszteség]]<>\"\"),ÉviAktuálisÖsszefoglaló[[#This Row],[Értékesítési nyereség/veszteség]]+ÉviAktuálisÖsszefoglaló[[#This Row],[Szállítási nyereség/veszteség]],\"\")","v":{"v":0,"d":"0.00 Ft"}}]
[{"$nulls":7},"November",{"$f":"NovemberiÉrtékesítés[[#Totals],[Értékesítési nyereség/veszteség]]","v":{"v":0,"d":"0.00 Ft"}},{"$f":"NovemberiÉrtékesítés[[#Totals],[Szállítási nyereség/veszteség]]","v":{"v":0,"d":"0.00 Ft"}},{"$f":"IF(AND(ÉviAktuálisÖsszefoglaló[[#This Row],[Értékesítési nyereség/veszteség]]<>\"\",ÉviAktuálisÖsszefoglaló[[#This Row],[Szállítási nyereség/veszteség]]<>\"\"),ÉviAktuálisÖsszefoglaló[[#This Row],[Értékesítési nyereség/veszteség]]+ÉviAktuálisÖsszefoglaló[[#This Row],[Szállítási nyereség/veszteség]],\"\")","v":{"v":0,"d":"0.00 Ft"}}]
[{"$nulls":7},"December",{"$f":"DecemberiÉrtékesítés[[#Totals],[Értékesítési nyereség/veszteség]]","v":{"v":0,"d":"0.00 Ft"}},{"$f":"DecemberiÉrtékesítés[[#Totals],[Szállítási nyereség/veszteség]]","v":{"v":0,"d":"0.00 Ft"}},{"$f":"IF(AND(ÉviAktuálisÖsszefoglaló[[#This Row],[Értékesítési nyereség/veszteség]]<>\"\",ÉviAktuálisÖsszefoglaló[[#This Row],[Szállítási nyereség/veszteség]]<>\"\"),ÉviAktuálisÖsszefoglaló[[#This Row],[Értékesítési nyereség/veszteség]]+ÉviAktuálisÖsszefoglaló[[#This Row],[Szállítási nyereség/veszteség]],\"\")","v":{"v":0,"d":"0.00 Ft"}}]
[{"$nulls":7},"Összesen",{"$f":"SUBTOTAL(109,ÉviAktuálisÖsszefoglaló[Értékesítési nyereség/veszteség])","v":{"v":291.8,"d":"291.80 Ft"}},{"$f":"SUBTOTAL(109,ÉviAktuálisÖsszefoglaló[Szállítási nyereség/veszteség])","v":{"v":21.8,"d":"21.80 Ft"}},{"$f":"SUBTOTAL(109,ÉviAktuálisÖsszefoglaló[Összes\nnyereség/veszteség])","v":{"v":313.6,"d":"313.60 Ft"}}]